fUST/lending_fUST_20241228
["ID","MTS","AMOUNT","RATE_DAILY","PERIOD"]
[346905814,1735355440653,-500.0,0.0001043,2]
[346905816,1735355440663,-500.0,0.0001043,2]
[346905818,1735355440673,-500.0,0.0001043,2]
[346905820,1735355440683,-500.0,0.0001043,2]
[346905821,1735355440692,-500.0,0.0001043,2]
[346905823,1735355440702,-500.0,0.0001043,2]
[346905825,1735355440712,-1192.33,0.0001043,2]
[346905827,1735355440721,-626.65608462,0.00010431,2]
[346905829,1735355440731,-500.0,0.00010431,2]
[346905830,1735355440741,-500.0,0.00010432,2]
[346905831,1735355440750,-500.0,0.00010432,2]
[346905832,1735355440759,-500.0,0.00010432,2]
[346905833,1735355440768,-1146.12,0.00010433,2]
[346905834,1735355440778,-500.0,0.00010433,2]
[346905835,1735355440787,-1557.94,0.00010436,2]
[346905836,1735355440796,-125.77048568,0.00010573,2]
[346905838,1735355441002,-690.0,9.61e-05,2]
[346905839,1735355441012,-454.76061895,9.884e-05,2]
[346905840,1735355441023,-235.23938105,9.884e-05,2]
[346905841,1735355441032,-690.0,0.00010158,2]
[346905842,1735355441042,-690.0,0.00010432,2]
[346905843,1735355441051,-374.22951432,0.00010573,2]
[346905844,1735355441060,-500.0,0.00010573,2]
[346905845,1735355441070,-500.0,0.00010574,2]
[346905846,1735355441079,-536.70173829,0.00010603,2]
[346905847,1735355441088,-1043.35,0.00010703,2]
[346905848,1735355441098,-851.03,0.00010703,2]
[346905849,1735355441108,-612.57,0.00010703,2]
[346905850,1735355441117,-500.0,0.00010703,2]
[346905851,1735355441127,-1047.45,0.00010703,2]
[346905852,1735355441136,-523.74,0.00010703,2]
[346905853,1735355441145,-708.08,0.00010703,2]
[346905854,1735355441154,-723.9,0.00010703,2]
[346905855,1735355441166,-500.0,0.00010703,2]
[346905856,1735355441176,-685.86,0.00010703,2]
[346905857,1735355441185,-506.37,0.00010703,2]
[346905858,1735355441194,-654.42,0.00010703,2]
[346905859,1735355441203,-500.0,0.00010703,2]
[346905860,1735355441213,-1951.78,0.00010704,2]
[346905861,1735355441222,-500.0,0.00010704,2]
[346905862,1735355441232,-500.0,0.00010704,2]
[346905863,1735355441243,-420.49,0.00010704,2]
[346905864,1735355441252,-500.0,0.00010704,2]
[346905865,1735355441261,-500.0,0.00010704,2]
[346905866,1735355441271,-500.0,0.00010704,2]
[346905867,1735355441280,-440.83362195,0.00010704,2]
[346905868,1735355441289,-500.0,0.00010704,2]
[346905869,1735355441298,-500.0,0.00010704,2]
[346905870,1735355441308,-500.0,0.00010704,2]
[346905871,1735355441317,-500.0,0.00010704,2]
[346905872,1735355441326,-3185.2,0.00010704,2]
[346905873,1735355441337,-500.0,0.00010704,2]
[346905874,1735355441348,-300.18254538,0.00010704,2]
[346905875,1735355441357,-500.0,0.00010704,2]
[346905876,1735355441367,-357.64886395,0.00010704,2]
[346905877,1735355441377,-500.0,0.00010704,2]
[346905878,1735355441386,-500.0,0.00010704,2]
[346905879,1735355441395,-500.0,0.00010704,2]
[346905880,1735355441405,-1192.33,0.00010704,2]
[346905881,1735355441415,-203.38058978,0.00010704,2]
[346905882,1735355441424,-502.23681622,0.00010704,2]
[346905883,1735355441433,-500.0,0.00010705,2]
[346905884,1735355441443,-585.66028423,0.00010705,2]
[346905885,1735355441453,-500.0,0.00010705,2]
[346905886,1735355441462,-500.0,0.00010706,2]
[346905887,1735355441472,-690.0,0.00010706,2]
[346905888,1735355441481,-576.57068288,0.00010707,2]
[346905889,1735355441492,-1146.12,0.00010707,2]
[346905890,1735355441501,-500.0,0.00010707,2]
[346905891,1735355441512,-1557.94,0.0001071,2]
[346905892,1735355441522,-10339.57476554,0.00010728,2]
[346905893,1735355441532,-500.53654066,0.00010768,2]
[346905894,1735355441541,-4380.992459,0.00010959,2]
[346905895,1735355441551,-587.0,0.00010961,2]
[346905896,1735355441561,-500.0,0.00010977,2]
[346905897,1735355441572,-500.0,0.00010977,2]
[346905898,1735355441582,-151.48,0.00010977,2]
[346905899,1735355441593,-1043.35,0.00010977,2]
[346905900,1735355441603,-851.03,0.00010977,2]
[346905901,1735355441612,-612.57,0.00010977,2]
[346905902,1735355441622,-500.0,0.00010977,2]
[346905903,1735355441631,-1047.45,0.00010977,2]
[346905904,1735355441640,-523.74,0.00010977,2]
[346905905,1735355441650,-708.08,0.00010977,2]
[346905906,1735355441661,-723.9,0.00010977,2]
[346905907,1735355441671,-500.0,0.00010977,2]
[346905908,1735355441680,-685.86,0.00010977,2]
[346905909,1735355441690,-506.37,0.00010977,2]
[346905910,1735355441700,-654.42,0.00010977,2]
[346905911,1735355441710,-500.0,0.00010977,2]
[346905912,1735355441721,-1951.78,0.00010978,2]
[346905913,1735355441730,-500.0,0.00010978,2]
[346905914,1735355441740,-448.11656327,0.00010978,2]
[346905915,1735355441749,-529.60384027,0.00010978,2]
[346905916,1735355441760,-500.0,0.00010978,2]
[346905917,1735355441769,-615.18434778,0.00010978,2]
[346905918,1735355441779,-500.0,0.00010978,2]
[346905919,1735355441788,-500.0,0.00010978,2]
[346905920,1735355441798,-500.0,0.00010978,2]
[346905921,1735355441807,-500.0,0.00010978,2]
[346905922,1735355441816,-3185.2,0.00010978,2]
[346905923,1735355441827,-500.0,0.00010978,2]
[346905924,1735355441836,-500.0,0.00010978,2]
[346905925,1735355441846,-500.0,0.00010978,2]
[346905926,1735355441855,-500.0,0.00010978,2]
[346905927,1735355441864,-500.0,0.00010978,2]
[346905928,1735355441874,-1192.33,0.00010978,2]
[346905929,1735355441883,-219.05,0.00010979,2]
[346905930,1735355441893,-330.71067264,0.0001098,2]
[346905931,1735355441903,-1146.12,0.00010981,2]
[346905932,1735355441912,-500.0,0.00010981,2]
[346905933,1735355441923,-1557.94,0.00010984,2]
[346905934,1735355441933,-151.0,0.00011,2]
[346905935,1735355441942,-182.92065015,0.00011016,2]
[346905936,1735355441952,-1000.81332882,0.00011121,2]
[346905937,1735355441962,-1043.35,0.00011251,2]
[346905938,1735355441971,-851.03,0.00011251,2]
[346905939,1735355441980,-612.57,0.00011251,2]
[346905940,1735355441990,-500.0,0.00011251,2]
[346905941,1735355441999,-1047.45,0.00011251,2]
[346905942,1735355442009,-523.74,0.00011251,2]
[346905943,1735355442019,-708.08,0.00011251,2]
[346905944,1735355442028,-723.9,0.00011251,2]
[346905945,1735355442038,-500.0,0.00011251,2]
[346905946,1735355442048,-685.86,0.00011251,2]
[346905947,1735355442057,-506.37,0.00011251,2]
[346905948,1735355442067,-654.42,0.00011251,2]
[346905949,1735355442076,-500.0,0.00011251,2]
[346905950,1735355442086,-1951.78,0.00011252,2]
[346905951,1735355442095,-436.15,0.00011252,2]
[346905952,1735355442106,-511.66366257,0.00011252,2]
[346905953,1735355442115,-500.0,0.00011252,2]
[346905954,1735355442124,-169.0915989,0.00011252,2]
[346905955,1735355442134,-500.0,0.00011252,2]
[346905956,1735355442143,-477.8,0.00011252,2]
[346905957,1735355442152,-3185.2,0.00011252,2]
[346905958,1735355442234,-500.0,0.00011252,2]
[346905959,1735355442244,-500.0,0.00011252,2]
[346905960,1735355442254,-500.0,0.00011252,2]
[346905961,1735355442263,-500.0,0.00011252,2]
[346905962,1735355442272,-500.0,0.00011252,2]
[346905963,1735355442282,-1192.33,0.00011252,2]
[346905964,1735355442291,-1146.12,0.00011255,2]
[346905965,1735355442302,-500.0,0.00011255,2]
[346905966,1735355442311,-1557.94,0.00011258,2]
[346905967,1735355442320,-151.0,0.000115,2]
[346905968,1735355442329,-1043.35,0.00011525,2]
[346905969,1735355442339,-851.03,0.00011525,2]
[346905970,1735355442348,-612.57,0.00011525,2]
[346905971,1735355442357,-500.0,0.00011525,2]
[346905972,1735355442367,-1047.45,0.00011525,2]
[346905973,1735355442377,-523.74,0.00011525,2]
[346905974,1735355442386,-708.08,0.00011525,2]
[346905975,1735355442395,-723.9,0.00011525,2]
[346905976,1735355442404,-500.0,0.00011525,2]
[346905977,1735355442414,-685.86,0.00011525,2]
[346905978,1735355442422,-506.37,0.00011525,2]
[346905979,1735355442432,-654.42,0.00011525,2]
[346905980,1735355442442,-500.0,0.00011525,2]
[346905981,1735355442451,-1951.78,0.00011526,2]
[346905982,1735355442460,-500.0,0.00011526,2]
[346905983,1735355442469,-500.0,0.00011526,2]
[346905984,1735355442478,-3185.2,0.00011526,2]
[346905985,1735355442487,-500.0,0.00011526,2]
[346905986,1735355442498,-500.0,0.00011526,2]
[346905987,1735355442509,-500.0,0.00011526,2]
[346905988,1735355442519,-500.0,0.00011526,2]
[346905989,1735355442528,-620.86110259,0.00011526,2]
[346905990,1735355442537,-1192.33,0.00011526,2]
[346905991,1735355442546,-1146.12,0.00011529,2]
[346905992,1735355442557,-500.0,0.00011529,2]
[346905993,1735355442566,-1557.94,0.00011532,2]
[346905994,1735355442575,-1043.35,0.00011799,2]
[346905995,1735355442585,-851.03,0.00011799,2]
[346905996,1735355442594,-612.57,0.00011799,2]
[346905997,1735355442603,-500.0,0.00011799,2]
[346905998,1735355442612,-1047.45,0.00011799,2]
[346905999,1735355442621,-523.74,0.00011799,2]
[346906000,1735355442634,-708.08,0.00011799,2]
[346906001,1735355442645,-723.9,0.00011799,2]
[346906002,1735355442654,-500.0,0.00011799,2]
[346906003,1735355442663,-685.86,0.00011799,2]
[346906004,1735355442672,-506.37,0.00011799,2]
[346906005,1735355442681,-654.42,0.00011799,2]
[346906006,1735355442691,-500.0,0.00011799,2]
[346906007,1735355442701,-1951.78,0.000118,2]
[346906008,1735355442711,-500.0,0.000118,2]
[346906009,1735355442720,-500.0,0.000118,2]
[346906010,1735355442731,-3185.2,0.000118,2]
[346906011,1735355442741,-500.0,0.000118,2]
[346906012,1735355442751,-500.0,0.000118,2]
[346906013,1735355442762,-500.0,0.000118,2]
[346906014,1735355442773,-500.0,0.000118,2]
[346906015,1735355442783,-1192.33,0.000118,2]
[346906016,1735355442792,-1146.12,0.00011803,2]
[346906017,1735355442803,-500.0,0.00011803,2]
[346906018,1735355442812,-1557.94,0.00011806,2]
[346906019,1735355442822,-151.0,0.00012,2]
[346906020,1735355442831,-151.0,0.00012,2]
[346906021,1735355442841,-182.92065015,0.00012043,2]
[346906022,1735355442850,-823.0,0.00012058,2]
[346906023,1735355442859,-1043.35,0.00012073,2]
[346906024,1735355442869,-851.03,0.00012073,2]
[346906025,1735355442878,-612.57,0.00012073,2]
[346906026,1735355442888,-500.0,0.00012073,2]
[346906027,1735355442897,-1047.45,0.00012073,2]
[346906028,1735355442907,-523.74,0.00012073,2]
[346906029,1735355442916,-708.08,0.00012073,2]
[346906030,1735355442925,-723.9,0.00012073,2]
[346906031,1735355442934,-500.0,0.00012073,2]
[346906032,1735355442944,-685.86,0.00012073,2]
[346906033,1735355442953,-506.37,0.00012073,2]
[346906034,1735355442963,-654.42,0.00012073,2]
[346906035,1735355442974,-500.0,0.00012073,2]
[346906036,1735355442985,-1951.78,0.00012074,2]
[346906037,1735355442994,-500.0,0.00012074,2]
[346906038,1735355443004,-500.0,0.00012074,2]
[346906039,1735355443014,-3185.2,0.00012074,2]
[346906040,1735355443023,-500.0,0.00012074,2]
[346906041,1735355443032,-500.0,0.00012074,2]
[346906042,1735355443042,-201.66838459,0.00012074,2]
[346906043,1735355443051,-500.0,0.00012074,2]
[346906044,1735355443061,-1192.33,0.00012074,2]
[346906045,1735355443071,-1146.12,0.00012077,2]
[346906046,1735355443081,-500.0,0.00012077,2]
[346906047,1735355443090,-1557.94,0.0001208,2]
[346906048,1735355443100,-1043.35,0.00012347,2]
[346906049,1735355443109,-851.03,0.00012347,2]
[346906050,1735355443119,-612.57,0.00012347,2]
[346906051,1735355443132,-500.0,0.00012347,2]
[346906052,1735355443141,-1047.45,0.00012347,2]
[346906053,1735355443151,-523.74,0.00012347,2]
[346906054,1735355443161,-708.08,0.00012347,2]
[346906055,1735355443174,-723.9,0.00012347,2]
[346906056,1735355443183,-500.0,0.00012347,2]
[346906057,1735355443192,-685.86,0.00012347,2]
[346906058,1735355443203,-506.37,0.00012347,2]
[346906059,1735355443214,-654.42,0.00012347,2]
[346906060,1735355443224,-500.0,0.00012347,2]
[346906061,1735355443233,-1951.78,0.00012348,2]
[346906062,1735355443245,-500.0,0.00012348,2]
[346906063,1735355443255,-306.55,0.00012348,2]
[346906064,1735355443265,-3185.2,0.00012348,2]
[346906065,1735355443275,-500.0,0.00012348,2]
[346906066,1735355443284,-500.0,0.00012348,2]
[346906067,1735355443293,-500.0,0.00012348,2]
[346906068,1735355443303,-1192.33,0.00012348,2]
[346906069,1735355443313,-1146.12,0.00012351,2]
[346906070,1735355443322,-427.99010204,0.00012351,2]
[346906071,1735355443331,-1557.94,0.00012354,2]
[346906072,1735355443340,-151.0,0.000125,2]
[346906073,1735355443349,-1043.35,0.00012621,2]
[346906074,1735355443359,-851.03,0.00012621,2]
[346906075,1735355443369,-612.57,0.00012621,2]
[346906076,1735355443378,-500.0,0.00012621,2]
[346906077,1735355443387,-1047.45,0.00012621,2]
[346906078,1735355443396,-523.74,0.00012621,2]
[346906079,1735355443406,-708.08,0.00012621,2]
[346906080,1735355443415,-723.9,0.00012621,2]
[346906081,1735355443423,-500.0,0.00012621,2]
[346906082,1735355443433,-685.86,0.00012621,2]
[346906083,1735355443442,-506.37,0.00012621,2]
[346906084,1735355443451,-654.42,0.00012621,2]
[346906085,1735355443461,-500.0,0.00012621,2]
[346906086,1735355443470,-1951.78,0.00012622,2]
[346906087,1735355443479,-424.19,0.00012622,2]
[346906088,1735355443488,-3185.2,0.00012622,2]
[346906090,1735355443498,-500.0,0.00012622,2]
[346906092,1735355443508,-500.0,0.00012622,2]
[346906094,1735355443518,-500.0,0.00012622,2]
[346906095,1735355443526,-1192.33,0.00012622,2]
[346906097,1735355443536,-1146.12,0.00012625,2]
[346906098,1735355443545,-1557.94,0.00012628,2]
[346906099,1735355443554,-500.0,0.00012671,2]
[346906100,1735355443564,-500.0,0.00012711,2]
[346906101,1735355443573,-500.0,0.00012761,2]
[346906102,1735355443582,-500.0,0.00012761,2]
[346906103,1735355443591,-500.99808196,0.00012761,2]
[346906104,1735355443600,-500.0,0.00012761,2]
[346906105,1735355443610,-500.0,0.00012761,2]
[346906106,1735355443619,-152.11710192,0.00012761,2]
[346906107,1735355443628,-500.0,0.00012761,2]
[346906108,1735355443638,-447.0309056,0.00012761,2]
[346906109,1735355443648,-500.0,0.00012761,2]
[346906110,1735355443658,-311.54241866,0.00012761,2]
[346906111,1735355443670,-425.91903927,0.00012761,2]
[346906112,1735355443680,-219.58228724,0.00012804,2]
[346906113,1735355443689,-630.88010063,0.00012804,2]
[346906114,1735355443700,-500.0,0.00012804,2]
[346906115,1735355443710,-500.92807484,0.00012832,2]
[346906117,1735355443719,-501.07804804,0.00012832,2]
[346906118,1735355443728,-1043.35,0.00012895,2]
[346906120,1735355443738,-851.03,0.00012895,2]
[346906122,1735355443747,-612.57,0.00012895,2]
[346906123,1735355443757,-500.0,0.00012895,2]
[346906124,1735355443766,-1047.45,0.00012895,2]
[346906125,1735355443776,-523.74,0.00012895,2]
[346906126,1735355443786,-708.08,0.00012895,2]
[346906127,1735355443798,-723.9,0.00012895,2]
[346906128,1735355443807,-500.0,0.00012895,2]
[346906129,1735355443816,-685.86,0.00012895,2]
[346906130,1735355443826,-506.37,0.00012895,2]
[346906131,1735355443836,-654.42,0.00012895,2]
[346906132,1735355443845,-500.0,0.00012895,2]
[346906133,1735355443855,-1951.78,0.00012896,2]
[346906134,1735355443864,-3185.2,0.00012896,2]
[346906135,1735355443873,-469.02751789,0.00012896,2]
[346906136,1735355443883,-500.0,0.00012896,2]
[346906137,1735355443892,-500.0,0.00012896,2]
[346906138,1735355443902,-1192.33,0.00012896,2]
[346906139,1735355443912,-1146.12,0.00012899,2]
[346906140,1735355443923,-151.0,0.000129,2]
[346906141,1735355443932,-363.08970719,0.000129,2]
[346906142,1735355443942,-363.08970719,0.000129,2]
[346906143,1735355443952,-363.08970719,0.000129,2]
[346906144,1735355443962,-1557.94,0.00012902,2]
[346906145,1735355443971,-151.0,0.00013,2]
[346906146,1735355443981,-182.92065015,0.0001307,2]
[346906147,1735355443990,-1043.35,0.00013169,2]
[346906148,1735355444001,-851.03,0.00013169,2]
[346906149,1735355444012,-612.57,0.00013169,2]
[346906150,1735355444022,-500.0,0.00013169,2]
[346906151,1735355444031,-1047.45,0.00013169,2]
[346906152,1735355444042,-523.74,0.00013169,2]
[346906153,1735355444052,-708.08,0.00013169,2]
[346906154,1735355444131,-723.9,0.00013169,2]
[346906155,1735355444141,-500.0,0.00013169,2]
[346906156,1735355444152,-685.86,0.00013169,2]
[346906157,1735355444164,-506.37,0.00013169,2]
[346906158,1735355444175,-654.42,0.00013169,2]
[346906159,1735355444184,-500.0,0.00013169,2]
[346906160,1735355444193,-1951.78,0.0001317,2]
[346906161,1735355444202,-3185.2,0.0001317,2]
[346906162,1735355444213,-624.22480809,0.0001317,2]
[346906163,1735355444222,-262.72961074,0.0001317,2]
[346906164,1735355444231,-1192.33,0.0001317,2]
[346906165,1735355444241,-1146.12,0.00013173,2]
[346906166,1735355444250,-1557.94,0.00013176,2]
[346906167,1735355444259,-500.0,0.00013219,2]
[346906168,1735355444269,-501.05635358,0.00013259,2]
[346906169,1735355444278,-1152.0,0.00013263,2]
[346906170,1735355444288,-500.0,0.00013309,2]
[346906171,1735355444298,-353.50814899,0.00013309,2]
[346906172,1735355444308,-501.3836405,0.00013309,2]
[346906173,1735355444319,-500.57350938,0.00013309,2]
[346906174,1735355444330,-1043.35,0.00013443,2]
[346906175,1735355444341,-851.03,0.00013443,2]
[346906176,1735355444350,-612.57,0.00013443,2]
[346906177,1735355444360,-500.0,0.00013443,2]
[346906178,1735355444370,-1047.45,0.00013443,2]
[346906179,1735355444381,-523.74,0.00013443,2]
[346906180,1735355444389,-708.08,0.00013443,2]
[346906181,1735355444399,-723.9,0.00013443,2]
[346906182,1735355444408,-500.0,0.00013443,2]
[346906183,1735355444419,-685.86,0.00013443,2]
[346906184,1735355444427,-506.37,0.00013443,2]
[346906185,1735355444437,-654.42,0.00013443,2]
[346906186,1735355444446,-500.0,0.00013443,2]
[346906187,1735355444456,-1951.78,0.00013444,2]
[346906188,1735355444465,-3185.2,0.00013444,2]
[346906189,1735355444475,-1192.33,0.00013444,2]
[346906190,1735355444484,-1146.12,0.00013447,2]
[346906191,1735355444493,-1557.94,0.0001345,2]
[346906192,1735355444502,-151.0,0.000135,2]
[346906193,1735355444512,-1000.0,0.00013698,2]
[346906194,1735355444521,-500.0,0.00013698,2]
[346906195,1735355444530,-1043.35,0.00013717,2]
[346906196,1735355444539,-851.03,0.00013717,2]
[346906197,1735355444549,-612.57,0.00013717,2]
[346906198,1735355444559,-243.34655511,0.00013717,2]
[346906199,1735355444568,-1047.45,0.00013717,2]
[346906200,1735355444578,-523.74,0.00013717,2]
[346906201,1735355444587,-708.08,0.00013717,2]
[346906202,1735355444596,-723.9,0.00013717,2]
[346906203,1735355444606,-500.0,0.00013717,2]
[346906204,1735355444615,-685.86,0.00013717,2]
[346906205,1735355444625,-506.37,0.00013717,2]
[346906206,1735355444634,-654.42,0.00013717,2]
[346906207,1735355444645,-500.0,0.00013717,2]
[346906208,1735355444655,-1951.78,0.00013718,2]
[346906209,1735355444666,-3185.2,0.00013718,2]
[346906210,1735355444676,-1192.33,0.00013718,2]
[346906211,1735355444685,-1146.12,0.00013721,2]
[346906212,1735355444695,-1557.94,0.00013724,2]
[346906213,1735355444706,-151.0,0.000139,2]
[346906214,1735355444715,-400.0,0.00013973,2]
[346906215,1735355444724,-1043.35,0.00013991,2]
[346906216,1735355444733,-851.03,0.00013991,2]
[346906217,1735355444743,-612.57,0.00013991,2]
[346906218,1735355444755,-1047.45,0.00013991,2]
[346906219,1735355444764,-523.74,0.00013991,2]
[346906220,1735355444774,-708.08,0.00013991,2]
[346906221,1735355444783,-723.9,0.00013991,2]
[346906222,1735355444792,-500.0,0.00013991,2]
[346906223,1735355444802,-685.86,0.00013991,2]
[346906224,1735355444811,-506.37,0.00013991,2]
[346906225,1735355444822,-654.42,0.00013991,2]
[346906226,1735355444832,-500.0,0.00013991,2]
[346906227,1735355444841,-1951.78,0.00013992,2]
[346906228,1735355444851,-3185.2,0.00013992,2]
[346906229,1735355444861,-1192.33,0.00013992,2]
[346906230,1735355444872,-1146.12,0.00013995,2]
[346906231,1735355444882,-1557.94,0.00013998,2]
[346906232,1735355444892,-151.0,0.00014,2]
[346906233,1735355444902,-1043.35,0.00014265,2]
[346906234,1735355444912,-851.03,0.00014265,2]
[346906235,1735355444922,-612.57,0.00014265,2]
[346906236,1735355444933,-1047.45,0.00014265,2]
[346906237,1735355444944,-523.74,0.00014265,2]
[346906238,1735355444954,-708.08,0.00014265,2]
[346906239,1735355444964,-723.9,0.00014265,2]
[346906240,1735355444974,-500.0,0.00014265,2]
[346906241,1735355444986,-685.86,0.00014265,2]
[346906242,1735355444997,-506.37,0.00014265,2]
[346906243,1735355445007,-654.42,0.00014265,2]
[346906244,1735355445016,-500.0,0.00014265,2]
[346906245,1735355445025,-1951.78,0.00014266,2]
[346906246,1735355445035,-3185.2,0.00014266,2]
[346906247,1735355445045,-1192.33,0.00014266,2]
[346906248,1735355445055,-1146.12,0.00014269,2]
[346906249,1735355445064,-1557.94,0.00014272,2]
[346906250,1735355445074,-151.0,0.000145,2]
[346906251,1735355445083,-1043.35,0.00014539,2]
[346906252,1735355445092,-851.03,0.00014539,2]
[346906253,1735355445102,-612.57,0.00014539,2]
[346906254,1735355445112,-1047.45,0.00014539,2]
[346906255,1735355445122,-523.74,0.00014539,2]
[346906256,1735355445135,-708.08,0.00014539,2]
[346906257,1735355445144,-723.9,0.00014539,2]
[346906258,1735355445154,-237.1163089,0.00014539,2]
[346906259,1735355445168,-685.86,0.00014539,2]
[346906260,1735355445178,-506.37,0.00014539,2]
[346906261,1735355445188,-654.42,0.00014539,2]
[346906262,1735355445197,-500.0,0.00014539,2]
[346906263,1735355445207,-1951.78,0.0001454,2]
[346906264,1735355445219,-3185.2,0.0001454,2]
[346906265,1735355445229,-1192.33,0.0001454,2]
[346906266,1735355445239,-1146.12,0.00014543,2]
[346906267,1735355445249,-1557.94,0.00014546,2]
[346906268,1735355445259,-151.0,0.000148,2]
[346906269,1735355445270,-1043.35,0.00014813,2]
[346906270,1735355445279,-851.03,0.00014813,2]
[346906271,1735355445289,-612.57,0.00014813,2]
[346906272,1735355445299,-1047.45,0.00014813,2]
[346906273,1735355445309,-523.74,0.00014813,2]
[346906274,1735355445320,-708.08,0.00014813,2]
[346906275,1735355445330,-723.9,0.00014813,2]
[346906276,1735355445341,-685.86,0.00014813,2]
[346906277,1735355445353,-506.37,0.00014813,2]
[346906278,1735355445363,-654.42,0.00014813,2]
[346906279,1735355445374,-500.0,0.00014813,2]
[346906280,1735355445389,-1951.78,0.00014814,2]
[346906281,1735355445401,-3185.2,0.00014814,2]
[346906282,1735355445413,-1192.33,0.00014814,2]
[346906283,1735355445424,-1146.12,0.00014816,2]
[346906284,1735355445434,-1557.94,0.0001482,2]
[346906285,1735355445445,-151.0,0.00015,2]
[346906286,1735355445455,-1043.35,0.00015087,2]
[346906287,1735355445466,-851.03,0.00015087,2]
[346906288,1735355445476,-612.57,0.00015087,2]
[346906289,1735355445487,-1047.45,0.00015087,2]
[346906290,1735355445497,-523.74,0.00015087,2]
[346906291,1735355445507,-708.08,0.00015087,2]
[346906292,1735355445517,-723.9,0.00015087,2]
[346906293,1735355445527,-685.86,0.00015087,2]
[346906294,1735355445537,-506.37,0.00015087,2]
[346906295,1735355445546,-654.42,0.00015087,2]
[346906296,1735355445556,-405.59622416,0.00015087,2]
[346906297,1735355445565,-1951.78,0.00015088,2]
[346906298,1735355445576,-3185.2,0.00015088,2]
[346906299,1735355445585,-1192.33,0.00015088,2]
[346906300,1735355445594,-1146.12,0.0001509,2]
[346906301,1735355445604,-1557.94,0.00015094,2]
[346906302,1735355445613,-1043.43084963,0.00015361,2]
[346906303,1735355445622,-851.21,0.00015361,2]
[346906304,1735355445635,-612.79625562,0.00015361,2]
[346906305,1735355445644,-1047.57,0.00015361,2]
[346906306,1735355445654,-523.83477091,0.00015361,2]
[346906307,1735355445663,-708.13191926,0.00015361,2]
[346906308,1735355445673,-723.96979038,0.00015361,2]
[346906309,1735355445682,-685.8983027,0.00015361,2]
[346906310,1735355445692,-506.60368984,0.00015361,2]
[346906311,1735355445701,-654.56797805,0.00015361,2]
[346906312,1735355445711,-1951.94,0.00015362,2]
[346906313,1735355445720,-3185.27633378,0.00015362,2]
[346906314,1735355445731,-1192.44777765,0.00015362,2]
[346906315,1735355445740,-1146.32657826,0.00015364,2]
[346906316,1735355445749,-1557.98494889,0.00015368,2]
[346906317,1735355445759,-151.0,0.000155,2]
[346906318,1735355445768,-151.0,0.000155,2]
[346906319,1735355445777,-151.0,0.000158,2]
[346906320,1735355445786,-4128.54153859,0.00015999,2]
[346906321,1735355445795,-156072.20402016,0.00015999,2]
[346906322,1735355445805,-425622.11300647,0.00016,5]
[346906323,1735355445822,-26377.1001444,0.00016,5]
[346906324,1735355446106,-126.32111776,0.0001098,2]
[346906344,1735356287347,1665.6012137,8.061e-05,2]
[346906345,1735356339147,-200.66263979,9.056e-05,2]
[346906346,1735356432116,-300.0,9.055e-05,2]
[346906347,1735356432138,-69.36553904,9.056e-05,2]